[Event "Late-Titled-Tuesday-Blitz-June-04-2024"]
[Site "Chess.com"]
[Date "2024.06.04"]
[Round "4"]
[White "Ramosha"]
[Black "GMthekingindian"]
[Result "1-0"]
[WhiteElo "2637"]
[BlackElo "2364"]
[TimeControl "180+1"]
[EndTime "14:36:21 PDT"]
[Termination "Ramosha won on time"]

1. e4 {[%clk 0:03:00.9]} 1... c5 {[%clk 0:02:59.5]} 2. Nf3 {[%clk 0:03:00.8]}
2... d6 {[%clk 0:03:00.1]} 3. Bb5+ {[%clk 0:03:00.6]} 3... Bd7 {[%clk
0:02:58.3]} 4. Bxd7+ {[%clk 0:03:00.5]} 4... Qxd7 {[%clk 0:02:59.2]} 5. c4
{[%clk 0:03:00.7]} 5... Nc6 {[%clk 0:02:57.1]} 6. Nc3 {[%clk 0:03:00.7]} 6... g6
{[%clk 0:02:57.5]} 7. d4 {[%clk 0:03:00.8]} 7... cxd4 {[%clk 0:02:57.4]} 8. Nxd4
{[%clk 0:03:01.7]} 8... Bg7 {[%clk 0:02:57.9]} 9. Be3 {[%clk 0:03:02.2]} 9...
Nf6 {[%clk 0:02:57.1]} 10. f3 {[%clk 0:03:02.7]} 10... O-O {[%clk 0:02:56.9]}
11. O-O {[%clk 0:03:02.7]} 11... Rfc8 {[%clk 0:02:57]} 12. b3 {[%clk 0:03:03.1]}
12... Qd8 {[%clk 0:02:56.8]} 13. Rc1 {[%clk 0:03:03.1]} 13... Qa5 {[%clk
0:02:49.7]} 14. Qd3 {[%clk 0:03:01.4]} 14... Nd7 {[%clk 0:02:38.5]} 15. Rfd1
{[%clk 0:02:59.7]} 15... Nxd4 {[%clk 0:02:27]} 16. Bxd4 {[%clk 0:02:58.9]} 16...
Bxd4+ {[%clk 0:02:26.9]} 17. Qxd4 {[%clk 0:02:59.8]} 17... Qc5 {[%clk
0:02:24.6]} 18. Qxc5 {[%clk 0:02:58.6]} 18... Nxc5 {[%clk 0:02:21.5]} 19. Kf2
{[%clk 0:02:55.4]} 19... Kf8 {[%clk 0:02:20.1]} 20. Ke3 {[%clk 0:02:54.4]} 20...
g5 {[%clk 0:01:55.4]} 21. h4 {[%clk 0:02:52.7]} 21... h6 {[%clk 0:01:53.1]} 22.
hxg5 {[%clk 0:02:51.5]} 22... hxg5 {[%clk 0:01:53.2]} 23. Rh1 {[%clk 0:02:51.5]}
23... Kg7 {[%clk 0:00:53.9]} 24. Rh5 {[%clk 0:02:50.4]} 24... f6 {[%clk
0:00:46.6]} 25. Rch1 {[%clk 0:02:49]} 25... Rh8 {[%clk 0:00:26.8]} 26. Rxh8
{[%clk 0:02:48.2]} 26... Rxh8 {[%clk 0:00:27.7]} 27. Rxh8 {[%clk 0:02:48.5]}
27... Kxh8 {[%clk 0:00:28.6]} 28. Nd5 {[%clk 0:02:49.3]} 28... e6 {[%clk
0:00:22.7]} 29. Nxf6 {[%clk 0:02:49.1]} 29... b6 {[%clk 0:00:16.3]} 30. Kd4
{[%clk 0:02:48]} 30... Nb7 {[%clk 0:00:16.3]} 31. e5 {[%clk 0:02:46.2]} 31...
dxe5+ {[%clk 0:00:09.7]} 32. Kxe5 {[%clk 0:02:47.1]} 32... Nc5 {[%clk
0:00:10.3]} 33. Ne4 {[%clk 0:02:47]} 33... Nd3+ {[%clk 0:00:08.3]} 34. Kxe6
{[%clk 0:02:47.4]} 34... Ne1 {[%clk 0:00:08.6]} 35. Kd7 {[%clk 0:02:46.5]} 35...
Nxg2 {[%clk 0:00:07.4]} 36. Nxg5 {[%clk 0:02:46.9]} 36... Kg7 {[%clk 0:00:07.2]}
37. Kc6 {[%clk 0:02:46.2]} 37... Kf6 {[%clk 0:00:07.4]} 38. Ne4+ {[%clk
0:02:46.7]} 38... Ke5 {[%clk 0:00:07.7]} 39. Nd6 {[%clk 0:02:47]} 39... Ne1
{[%clk 0:00:06.3]} 40. Nc8 {[%clk 0:02:44.2]} 40... Nd3 {[%clk 0:00:02.8]} 41.
Nxa7 {[%clk 0:02:41.1]} 41... Nc1 {[%clk 0:00:03.1]} 42. Kxb6 {[%clk 0:02:41.6]}
42... Nxa2 {[%clk 0:00:03.4]} 43. c5 {[%clk 0:02:41.6]} 43... Nc1 {[%clk
0:00:02.1]} 44. c6 {[%clk 0:02:41.1]} 44... Nxb3 {[%clk 0:00:02.4]} 45. c7
{[%clk 0:02:41.7]} 1-0

[Event "Late-Titled-Tuesday-Blitz-June-04-2024"]
[Site "Chess.com"]
[Date "2024.06.04"]
[Round "4"]
[White "Artyom_ChessMate"]
[Black "RealPerangel"]
[Result "0-1"]
[WhiteElo "2537"]
[BlackElo "2744"]
[TimeControl "180+1"]
[EndTime "14:36:24 PDT"]
[Termination "RealPerangel won by resignation"]

1. e4 {[%clk 0:03:00.9]} 1... d5 {[%clk 0:02:59.8]} 2. exd5 {[%clk 0:03:00.7]}
2... Qxd5 {[%clk 0:03:00.5]} 3. Nf3 {[%clk 0:03:00.7]} 3... Bg4 {[%clk
0:03:00.1]} 4. Be2 {[%clk 0:03:00.5]} 4... Nc6 {[%clk 0:03:00.4]} 5. h3 {[%clk
0:03:00.9]} 5... Bh5 {[%clk 0:02:56.7]} 6. d4 {[%clk 0:03:00.8]} 6... O-O-O
{[%clk 0:02:56.1]} 7. c4 {[%clk 0:03:01]} 7... Qd6 {[%clk 0:02:56.1]} 8. d5
{[%clk 0:03:01.2]} 8... Bxf3 {[%clk 0:02:55.8]} 9. Bxf3 {[%clk 0:03:02.1]} 9...
Ne5 {[%clk 0:02:56.2]} 10. O-O {[%clk 0:03:03]} 10... e6 {[%clk 0:02:56.5]} 11.
Nc3 {[%clk 0:02:56.2]} 11... Nf6 {[%clk 0:02:55.4]} 12. Bf4 {[%clk 0:02:51.6]}
12... g5 {[%clk 0:02:48.9]} 13. Nb5 {[%clk 0:02:45.9]} 13... Nxf3+ {[%clk
0:02:47.8]} 14. Qxf3 {[%clk 0:02:35.2]} 14... Qxf4 {[%clk 0:02:47.6]} 15. Nxa7+
{[%clk 0:02:35.3]} 15... Kb8 {[%clk 0:02:47.3]} 16. Nc6+ {[%clk 0:02:26.1]}
16... Kc8 {[%clk 0:02:26.4]} 17. Qxf4 {[%clk 0:02:12]} 17... gxf4 {[%clk
0:02:25.9]} 18. Nxd8 {[%clk 0:02:12.9]} 18... Kxd8 {[%clk 0:02:26.2]} 19. dxe6
{[%clk 0:02:12.1]} 19... fxe6 {[%clk 0:02:26.9]} 20. Rad1+ {[%clk 0:02:11.6]}
20... Ke7 {[%clk 0:02:25.6]} 21. b4 {[%clk 0:02:09.1]} 21... e5 {[%clk
0:02:09.7]} 22. Rfe1 {[%clk 0:02:07.4]} 22... Ke6 {[%clk 0:02:09.8]} 23. a3
{[%clk 0:02:06.4]} 23... Be7 {[%clk 0:02:05.3]} 24. f3 {[%clk 0:02:06.2]} 24...
Ra8 {[%clk 0:02:04.6]} 25. Rd3 {[%clk 0:02:05.9]} 25... c5 {[%clk 0:02:03]} 26.
b5 {[%clk 0:01:31.5]} 26... Ra4 {[%clk 0:02:02.3]} 27. Rc3 {[%clk 0:01:29]}
27... Bd8 {[%clk 0:02:01.2]} 28. Rec1 {[%clk 0:01:16.8]} 28... e4 {[%clk
0:01:56.6]} 29. fxe4 {[%clk 0:01:16.5]} 29... Bc7 {[%clk 0:01:55.7]} 30. Rd3
{[%clk 0:01:12.1]} 30... Be5 {[%clk 0:01:54.3]} 31. Rd8 {[%clk 0:01:05.9]} 31...
Rxa3 {[%clk 0:01:54.1]} 32. Re1 {[%clk 0:00:44.9]} 32... Rc3 {[%clk 0:01:51.5]}
33. Ra8 {[%clk 0:00:35.7]} 33... Rxc4 {[%clk 0:01:42.5]} 34. Ra7 {[%clk
0:00:35.8]} 34... b6 {[%clk 0:01:42.9]} 35. Rb7 {[%clk 0:00:34.7]} 35... Nd7
{[%clk 0:01:43]} 0-1

[Event "Late-Titled-Tuesday-Blitz-June-04-2024"]
[Site "Chess.com"]
[Date "2024.06.04"]
[Round "4"]
[White "StoreySniper"]
[Black "gabduschew"]
[Result "0-1"]
[WhiteElo "2469"]
[BlackElo "2334"]
[TimeControl "180+1"]
[EndTime "14:36:32 PDT"]
[Termination "gabduschew won by resignation"]

1. c4 {[%clk 0:03:00.9]} 1... e5 {[%clk 0:03:00.3]} 2. g3 {[%clk 0:03:00.7]}
2... Nf6 {[%clk 0:03:00.9]} 3. Bg2 {[%clk 0:03:01.2]} 3... d5 {[%clk 0:03:01.8]}
4. cxd5 {[%clk 0:03:01]} 4... Nxd5 {[%clk 0:03:02.7]} 5. Qb3 {[%clk 0:03:00.2]}
5... Nb6 {[%clk 0:02:58.9]} 6. Nf3 {[%clk 0:02:59.4]} 6... Nc6 {[%clk 0:02:58]}
7. d3 {[%clk 0:02:57.9]} 7... Be7 {[%clk 0:02:58.5]} 8. Nc3 {[%clk 0:02:57.8]}
8... O-O {[%clk 0:02:57.7]} 9. Be3 {[%clk 0:02:57.1]} 9... Be6 {[%clk
0:02:43.4]} 10. Qc2 {[%clk 0:02:55.7]} 10... f5 {[%clk 0:02:20.6]} 11. O-O
{[%clk 0:02:52.9]} 11... f4 {[%clk 0:02:19.6]} 12. Bd2 {[%clk 0:02:47.6]} 12...
Qe8 {[%clk 0:02:10.5]} 13. Ne4 {[%clk 0:02:44.3]} 13... Qg6 {[%clk 0:02:04.3]}
14. Nc5 {[%clk 0:02:38.5]} 14... Bd5 {[%clk 0:02:00.1]} 15. Nxb7 {[%clk
0:02:20.7]} 15... Bxf3 {[%clk 0:01:59.9]} 16. Bxf3 {[%clk 0:01:48.7]} 16... Nd4
{[%clk 0:01:59.5]} 17. Qxc7 {[%clk 0:01:42.5]} 17... fxg3 {[%clk 0:01:45.6]} 18.
Qxe7 {[%clk 0:01:16.2]} 18... Nxe2+ {[%clk 0:01:01.3]} 19. Bxe2 {[%clk
0:01:00.3]} 19... gxf2+ {[%clk 0:01:01.3]} 20. Kh1 {[%clk 0:00:41.5]} 20... Qc6+
{[%clk 0:00:59.3]} 0-1

[Event "Late-Titled-Tuesday-Blitz-June-04-2024"]
[Site "Chess.com"]
[Date "2024.06.04"]
[Round "4"]
[White "konradrutkowski"]
[Black "Pachonpower"]
[Result "1-0"]
[WhiteElo "2542"]
[BlackElo "2368"]
[TimeControl "180+1"]
[EndTime "14:36:40 PDT"]
[Termination "konradrutkowski won by checkmate"]

1. e4 {[%clk 0:03:00.9]} 1... e6 {[%clk 0:02:53.6]} 2. d4 {[%clk 0:03:00]} 2...
d5 {[%clk 0:02:54.5]} 3. Nc3 {[%clk 0:02:59.4]} 3... dxe4 {[%clk 0:02:54.9]} 4.
Nxe4 {[%clk 0:03:00.1]} 4... Nd7 {[%clk 0:02:55.7]} 5. Nf3 {[%clk 0:02:58.9]}
5... Ngf6 {[%clk 0:02:56.6]} 6. Nxf6+ {[%clk 0:02:57.4]} 6... Nxf6 {[%clk
0:02:57.5]} 7. Bd3 {[%clk 0:02:57.2]} 7... b6 {[%clk 0:02:57.9]} 8. Ne5 {[%clk
0:02:53.7]} 8... Bb7 {[%clk 0:02:58.1]} 9. Bb5+ {[%clk 0:02:53.2]} 9... c6
{[%clk 0:02:58.4]} 10. Nxc6 {[%clk 0:02:51.4]} 10... Qd5 {[%clk 0:02:58]} 11. c4
{[%clk 0:02:35.3]} 11... Qxg2 {[%clk 0:02:57.1]} 12. Ne5+ {[%clk 0:02:28.6]}
12... Kd8 {[%clk 0:02:56.3]} 13. Rf1 {[%clk 0:02:27.6]} 13... Qe4+ {[%clk
0:02:46]} 14. Be3 {[%clk 0:02:15.1]} 14... Bb4+ {[%clk 0:02:44.1]} 15. Ke2
{[%clk 0:02:15.4]} 15... Ke7 {[%clk 0:02:21.5]} 16. Qa4 {[%clk 0:01:41.6]} 16...
a5 {[%clk 0:02:09.7]} 17. Bc6 {[%clk 0:01:31.3]} 17... Bxc6 {[%clk 0:02:05.1]}
18. Nxc6+ {[%clk 0:01:30.1]} 18... Kd6 {[%clk 0:02:04.6]} 19. Nxb4 {[%clk
0:01:26.4]} 19... axb4 {[%clk 0:02:05.5]} 20. Qxb4+ {[%clk 0:01:26.4]} 20... Kc7
{[%clk 0:02:04.9]} 21. Rac1 {[%clk 0:01:17.8]} 21... Rxa2 {[%clk 0:01:54.5]} 22.
c5 {[%clk 0:01:17.1]} 22... b5 {[%clk 0:01:54.8]} 23. Ra1 {[%clk 0:01:08.5]}
23... Qc2+ {[%clk 0:01:46.8]} 24. Kf3 {[%clk 0:00:59.2]} 24... Rxb2 {[%clk
0:01:47]} 25. Qa5+ {[%clk 0:00:53.8]} 25... Kd7 {[%clk 0:01:16.5]} 26. Qa7+
{[%clk 0:00:48.7]} 26... Ke8 {[%clk 0:01:13.9]} 27. Qb8+ {[%clk 0:00:44.9]}
27... Kd7 {[%clk 0:01:13.5]} 28. Qd6+ {[%clk 0:00:44.6]} 28... Kc8 {[%clk
0:01:11.4]} 29. Qc6+ {[%clk 0:00:39.3]} 29... Kd8 {[%clk 0:01:10.2]} 30. Ra8+
{[%clk 0:00:36.9]} 30... Ke7 {[%clk 0:01:10.4]} 31. Qd6# {[%clk 0:00:37]} 1-0

[Event "Late-Titled-Tuesday-Blitz-June-04-2024"]
[Site "Chess.com"]
[Date "2024.06.04"]
[Round "4"]
[White "Pelusiansky"]
[Black "nabukatnezarr"]
[Result "0-1"]
[WhiteElo "2384"]
[BlackElo "2578"]
[TimeControl "180+1"]
[EndTime "14:36:44 PDT"]
[Termination "nabukatnezarr won by resignation"]

1. d4 {[%clk 0:03:00.9]} 1... Nf6 {[%clk 0:02:59.8]} 2. c4 {[%clk 0:02:59.6]}
2... e6 {[%clk 0:03:00.1]} 3. Nc3 {[%clk 0:02:59.8]} 3... Bb4 {[%clk 0:03:00.3]}
4. e3 {[%clk 0:02:59.8]} 4... O-O {[%clk 0:02:59.5]} 5. Bd3 {[%clk 0:02:59]}
5... Bxc3+ {[%clk 0:02:58.2]} 6. bxc3 {[%clk 0:02:58.3]} 6... d5 {[%clk
0:02:59.1]} 7. Ne2 {[%clk 0:02:55.6]} 7... c5 {[%clk 0:02:59.5]} 8. O-O {[%clk
0:02:55.3]} 8... Nc6 {[%clk 0:02:58.6]} 9. Re1 {[%clk 0:02:37.8]} 9... b6 {[%clk
0:02:52.9]} 10. a4 {[%clk 0:02:31.9]} 10... dxc4 {[%clk 0:02:48.8]} 11. Bxc4
{[%clk 0:02:31.2]} 11... Na5 {[%clk 0:02:49.7]} 12. Bd3 {[%clk 0:02:26.1]} 12...
Bb7 {[%clk 0:02:50.3]} 13. f3 {[%clk 0:02:19.1]} 13... Qc7 {[%clk 0:02:49.4]}
14. e4 {[%clk 0:02:14]} 14... e5 {[%clk 0:02:49.7]} 15. Bg5 {[%clk 0:02:05.5]}
15... Ne8 {[%clk 0:02:46.8]} 16. Be3 {[%clk 0:02:02]} 16... Rd8 {[%clk
0:02:38.2]} 17. Rc1 {[%clk 0:01:49.3]} 17... Nd6 {[%clk 0:02:27.6]} 18. Ng3
{[%clk 0:01:30.7]} 18... Ndc4 {[%clk 0:02:24.7]} 19. d5 {[%clk 0:01:24.1]} 19...
Nxe3 {[%clk 0:02:23.9]} 20. Rxe3 {[%clk 0:01:24.1]} 20... c4 {[%clk 0:02:20.8]}
21. Bc2 {[%clk 0:01:24.1]} 21... Qc5 {[%clk 0:02:20.6]} 22. Qe2 {[%clk
0:01:21.9]} 22... Nb3 {[%clk 0:02:11.6]} 23. Rb1 {[%clk 0:01:17]} 23... Ba6
{[%clk 0:02:07.1]} 24. Nf5 {[%clk 0:01:06.6]} 24... g6 {[%clk 0:02:05.3]} 25.
Bxb3 {[%clk 0:01:06.7]} 25... cxb3 {[%clk 0:02:03.5]} 26. Qxa6 {[%clk
0:01:06.8]} 26... gxf5 {[%clk 0:02:04.2]} 27. Qe2 {[%clk 0:00:21.8]} 27... f4
{[%clk 0:02:00.5]} 28. Kf2 {[%clk 0:00:21.8]} 28... Rc8 {[%clk 0:01:52.1]} 29.
Rxb3 {[%clk 0:00:19.8]} 29... Rc7 {[%clk 0:01:49.6]} 30. Rb5 {[%clk 0:00:19.1]}
30... Qxe3+ {[%clk 0:01:49.6]} 31. Qxe3 {[%clk 0:00:18.7]} 31... fxe3+ {[%clk
0:01:50.5]} 32. Kxe3 {[%clk 0:00:19.6]} 32... Rxc3+ {[%clk 0:01:50.8]} 33. Kd2
{[%clk 0:00:20.1]} 33... Rfc8 {[%clk 0:01:49.6]} 34. d6 {[%clk 0:00:20.4]} 34...
Rc2+ {[%clk 0:01:48.1]} 35. Kd1 {[%clk 0:00:20.4]} 35... R2c5 {[%clk 0:01:49]}
36. Rb2 {[%clk 0:00:15.6]} 36... Rd8 {[%clk 0:01:48.3]} 37. Rd2 {[%clk
0:00:15.7]} 37... Rc6 {[%clk 0:01:48.5]} 38. f4 {[%clk 0:00:15.2]} 38... Rcxd6
{[%clk 0:01:48.4]} 0-1

[Event "Late-Titled-Tuesday-Blitz-June-04-2024"]
[Site "Chess.com"]
[Date "2024.06.04"]
[Round "4"]
[White "MaxLeto"]
[Black "MrEscacs"]
[Result "1-0"]
[WhiteElo "2442"]
[BlackElo "2143"]
[TimeControl "180+1"]
[EndTime "14:36:44 PDT"]
[Termination "MaxLeto won by resignation"]

1. g4 {[%clk 0:03:00.9]} 1... d5 {[%clk 0:02:54.5]} 2. Bg2 {[%clk 0:03:01.2]}
2... c6 {[%clk 0:02:54.7]} 3. h3 {[%clk 0:03:00.9]} 3... e5 {[%clk 0:02:50.4]}
4. d4 {[%clk 0:03:01.3]} 4... e4 {[%clk 0:02:44.7]} 5. c4 {[%clk 0:03:01.7]}
5... h6 {[%clk 0:02:36]} 6. Nc3 {[%clk 0:03:01.7]} 6... Nf6 {[%clk 0:02:35.7]}
7. Qb3 {[%clk 0:02:53.4]} 7... Qb6 {[%clk 0:02:30.9]} 8. c5 {[%clk 0:02:48.3]}
8... Qxb3 {[%clk 0:02:26.9]} 9. axb3 {[%clk 0:02:49.2]} 9... a6 {[%clk
0:02:22.2]} 10. b4 {[%clk 0:02:46.1]} 10... Bd7 {[%clk 0:02:03.2]} 11. Bf4
{[%clk 0:02:40.8]} 11... Be7 {[%clk 0:01:59.1]} 12. e3 {[%clk 0:02:21.4]} 12...
O-O {[%clk 0:01:58.8]} 13. Nge2 {[%clk 0:02:21.3]} 13... Be8 {[%clk 0:01:58.5]}
14. Nc1 {[%clk 0:02:17.8]} 14... Nbd7 {[%clk 0:01:58.2]} 15. Nb3 {[%clk
0:02:18.4]} 15... b6 {[%clk 0:01:43.7]} 16. Kd2 {[%clk 0:02:03.4]} 16... bxc5
{[%clk 0:01:07.2]} 17. bxc5 {[%clk 0:02:01.3]} 17... Bd8 {[%clk 0:01:04.6]} 18.
Bd6 {[%clk 0:01:53.8]} 18... Nh7 {[%clk 0:00:50.8]} 19. Ra3 {[%clk 0:01:50.4]}
19... Ndf6 {[%clk 0:00:50]} 20. Rha1 {[%clk 0:01:48.7]} 20... Ng5 {[%clk
0:00:49.7]} 21. Rxa6 {[%clk 0:01:45.3]} 21... Rxa6 {[%clk 0:00:49.8]} 22. Rxa6
{[%clk 0:01:45.9]} 22... Bd7 {[%clk 0:00:48]} 23. Bxf8 {[%clk 0:01:45.1]} 23...
Kxf8 {[%clk 0:00:48]} 24. Na5 {[%clk 0:01:43.1]} 24... Bxa5 {[%clk 0:00:45.4]}
25. Rxa5 {[%clk 0:01:42.7]} 25... h5 {[%clk 0:00:45.6]} 26. h4 {[%clk
0:01:40.4]} 26... Nf3+ {[%clk 0:00:43.2]} 27. Bxf3 {[%clk 0:01:40.5]} 27... exf3
{[%clk 0:00:43.6]} 28. gxh5 {[%clk 0:01:37.7]} 28... Nxh5 {[%clk 0:00:41]} 29.
Ra7 {[%clk 0:01:32.1]} 29... Ke7 {[%clk 0:00:39.3]} 30. b4 {[%clk 0:01:32.6]}
30... f6 {[%clk 0:00:36.9]} 31. b5 {[%clk 0:01:30.3]} 31... Kd8 {[%clk
0:00:32.5]} 32. b6 {[%clk 0:01:27.7]} 32... g5 {[%clk 0:00:27.8]} 33. hxg5
{[%clk 0:01:25.9]} 33... fxg5 {[%clk 0:00:28.2]} 34. Ra8+ {[%clk 0:01:21.6]} 1-0

[Event "Late-Titled-Tuesday-Blitz-June-04-2024"]
[Site "Chess.com"]
[Date "2024.06.04"]
[Round "4"]
[White "Timurist"]
[Black "HajiyevKanan"]
[Result "0-1"]
[WhiteElo "2348"]
[BlackElo "2519"]
[TimeControl "180+1"]
[EndTime "14:36:45 PDT"]
[Termination "HajiyevKanan won by resignation"]

1. e4 {[%clk 0:03:00.9]} 1... c6 {[%clk 0:02:55.1]} 2. d4 {[%clk 0:03:00.7]}
2... d5 {[%clk 0:02:56]} 3. exd5 {[%clk 0:03:01.6]} 3... cxd5 {[%clk 0:02:56.9]}
4. Bd3 {[%clk 0:03:01.9]} 4... Nc6 {[%clk 0:02:55.4]} 5. c3 {[%clk 0:03:02.2]}
5... Qc7 {[%clk 0:02:56.1]} 6. Ne2 {[%clk 0:03:01.4]} 6... Nf6 {[%clk
0:02:50.7]} 7. O-O {[%clk 0:02:50.2]} 7... Bg4 {[%clk 0:02:48.6]} 8. Qe1 {[%clk
0:02:47.6]} 8... Bxe2 {[%clk 0:02:45.1]} 9. Qxe2 {[%clk 0:02:47.2]} 9... e6
{[%clk 0:02:46]} 10. f4 {[%clk 0:02:41]} 10... Bd6 {[%clk 0:02:44.6]} 11. h3
{[%clk 0:02:34.9]} 11... O-O-O {[%clk 0:02:41.9]} 12. Qf3 {[%clk 0:02:33.1]}
12... h5 {[%clk 0:02:30.9]} 13. Bd2 {[%clk 0:02:32.9]} 13... g6 {[%clk
0:02:24.5]} 14. Be1 {[%clk 0:02:32.8]} 14... Qb6 {[%clk 0:02:15.6]} 15. Qe2
{[%clk 0:02:26.9]} 15... Ne4 {[%clk 0:02:05.9]} 16. Bh4 {[%clk 0:02:20.9]} 16...
Be7 {[%clk 0:01:47.2]} 17. Bxe7 {[%clk 0:02:11.2]} 17... Nxe7 {[%clk 0:01:48.1]}
18. Bxe4 {[%clk 0:02:07.6]} 18... dxe4 {[%clk 0:01:48.1]} 19. Nd2 {[%clk
0:02:05.9]} 19... f5 {[%clk 0:01:47.5]} 20. Nc4 {[%clk 0:02:05.7]} 20... Qa6
{[%clk 0:01:47]} 21. Rfe1 {[%clk 0:02:02.4]} 21... Nd5 {[%clk 0:01:46.8]} 22. g3
{[%clk 0:01:27.7]} 22... h4 {[%clk 0:01:46.4]} 23. Ne5 {[%clk 0:01:28.1]} 23...
hxg3 {[%clk 0:01:39.4]} 24. Qxa6 {[%clk 0:01:27.6]} 24... bxa6 {[%clk
0:01:34.3]} 25. Nf7 {[%clk 0:01:20.7]} 25... Nxf4 {[%clk 0:01:33.8]} 26. Nxd8
{[%clk 0:01:20.2]} 26... Kxd8 {[%clk 0:01:30.4]} 27. Re3 {[%clk 0:01:18.7]}
27... Rxh3 {[%clk 0:01:28.3]} 28. c4 {[%clk 0:01:16.2]} 28... g5 {[%clk
0:01:15.4]} 29. Rc1 {[%clk 0:01:08.3]} 29... g4 {[%clk 0:01:10.1]} 30. Rcc3
{[%clk 0:01:02.8]} 30... Rh2 {[%clk 0:01:07.5]} 31. Rxg3 {[%clk 0:00:57.6]}
31... Rxb2 {[%clk 0:01:04]} 32. Rb3 {[%clk 0:00:55.4]} 32... Ne2+ {[%clk
0:00:51.7]} 0-1

[Event "Late-Titled-Tuesday-Blitz-June-04-2024"]
[Site "Chess.com"]
[Date "2024.06.04"]
[Round "4"]
[White "jefferyx"]
[Black "frederiksvane"]
[Result "0-1"]
[WhiteElo "3078"]
[BlackElo "2902"]
[TimeControl "180+1"]
[EndTime "14:36:58 PDT"]
[Termination "frederiksvane won by resignation"]

1. Nf3 {[%clk 0:02:58.8]} 1... d5 {[%clk 0:02:59.7]} 2. g3 {[%clk 0:02:59]} 2...
Bg4 {[%clk 0:02:59.3]} 3. Bg2 {[%clk 0:02:58.8]} 3... e6 {[%clk 0:02:59.7]} 4.
O-O {[%clk 0:02:59.2]} 4... Nd7 {[%clk 0:03:00.4]} 5. h3 {[%clk 0:02:57.7]} 5...
Bxf3 {[%clk 0:03:00.4]} 6. Bxf3 {[%clk 0:02:57.6]} 6... c6 {[%clk 0:03:01.1]} 7.
d3 {[%clk 0:02:58]} 7... Bc5 {[%clk 0:03:01.1]} 8. Bg2 {[%clk 0:02:56.4]} 8...
Ne7 {[%clk 0:03:00.8]} 9. Nd2 {[%clk 0:02:56.5]} 9... O-O {[%clk 0:03:00.6]} 10.
e4 {[%clk 0:02:46.8]} 10... Qc7 {[%clk 0:03:00.6]} 11. Kh1 {[%clk 0:02:45.2]}
11... f5 {[%clk 0:02:55.9]} 12. f4 {[%clk 0:02:22.9]} 12... dxe4 {[%clk
0:02:43.4]} 13. dxe4 {[%clk 0:02:23.8]} 13... e5 {[%clk 0:02:43.9]} 14. exf5
{[%clk 0:02:18.9]} 14... Nxf5 {[%clk 0:02:25.6]} 15. Ne4 {[%clk 0:02:18.5]}
15... Rae8 {[%clk 0:01:51]} 16. c3 {[%clk 0:02:05.9]} 16... Be3 {[%clk 0:01:37]}
17. g4 {[%clk 0:01:27]} 17... Bxc1 {[%clk 0:01:30.5]} 18. Qxc1 {[%clk
0:01:27.9]} 18... Nd6 {[%clk 0:01:27.1]} 19. Nxd6 {[%clk 0:01:20.8]} 19... Qxd6
{[%clk 0:01:28]} 20. f5 {[%clk 0:01:21.5]} 20... Qc5 {[%clk 0:01:15.6]} 21. b4
{[%clk 0:01:15.6]} 21... Qc4 {[%clk 0:01:10.9]} 22. Qe3 {[%clk 0:01:14]} 22...
Nf6 {[%clk 0:01:11.1]} 23. Qxa7 {[%clk 0:00:59.8]} 23... Nd5 {[%clk 0:00:41.7]}
24. Qxb7 {[%clk 0:00:54.2]} 24... Rf7 {[%clk 0:00:34.9]} 0-1

[Event "Late-Titled-Tuesday-Blitz-June-04-2024"]
[Site "Chess.com"]
[Date "2024.06.04"]
[Round "4"]
[White "AlejandroArias"]
[Black "rhungaski"]
[Result "0-1"]
[WhiteElo "2385"]
[BlackElo "2639"]
[TimeControl "180+1"]
[EndTime "14:37:01 PDT"]
[Termination "rhungaski won by resignation"]

1. e4 {[%clk 0:03:00.9]} 1... e6 {[%clk 0:02:59.9]} 2. d4 {[%clk 0:03:00.3]}
2... d5 {[%clk 0:03:00.6]} 3. Bd3 {[%clk 0:03:00.1]} 3... h6 {[%clk 0:02:59.4]}
4. exd5 {[%clk 0:02:57.9]} 4... exd5 {[%clk 0:02:59.1]} 5. Nf3 {[%clk
0:02:57.7]} 5... Nf6 {[%clk 0:02:59.4]} 6. h3 {[%clk 0:02:57.8]} 6... c5 {[%clk
0:02:58.6]} 7. O-O {[%clk 0:02:56.2]} 7... c4 {[%clk 0:02:57.7]} 8. Re1+ {[%clk
0:02:56.3]} 8... Be7 {[%clk 0:02:57.9]} 9. Bf1 {[%clk 0:02:56.3]} 9... O-O
{[%clk 0:02:57.9]} 10. b3 {[%clk 0:02:54.9]} 10... cxb3 {[%clk 0:02:58.8]} 11.
axb3 {[%clk 0:02:54.8]} 11... Nc6 {[%clk 0:02:57.3]} 12. c3 {[%clk 0:02:54.1]}
12... Bf5 {[%clk 0:02:57]} 13. Bf4 {[%clk 0:02:48]} 13... Re8 {[%clk 0:02:53.9]}
14. Nbd2 {[%clk 0:02:38.1]} 14... a6 {[%clk 0:02:54]} 15. b4 {[%clk 0:02:35.6]}
15... Ne4 {[%clk 0:02:47.6]} 16. Nxe4 {[%clk 0:02:29.8]} 16... Bxe4 {[%clk
0:02:48.5]} 17. Nd2 {[%clk 0:02:25.6]} 17... Bg6 {[%clk 0:02:47]} 18. Nb3 {[%clk
0:02:25.4]} 18... Qd7 {[%clk 0:02:45.2]} 19. Nc5 {[%clk 0:02:22.7]} 19... Bxc5
{[%clk 0:02:45.4]} 20. bxc5 {[%clk 0:02:23.6]} 20... Rxe1 {[%clk 0:02:42.2]} 21.
Qxe1 {[%clk 0:02:23.6]} 21... Re8 {[%clk 0:02:43.1]} 22. Qd2 {[%clk 0:02:21.8]}
22... Re6 {[%clk 0:02:31.4]} 23. Re1 {[%clk 0:02:17.4]} 23... Qe8 {[%clk
0:02:29.7]} 24. Rxe6 {[%clk 0:02:15.8]} 24... Qxe6 {[%clk 0:02:30.6]} 25. Be2
{[%clk 0:02:10.2]} 25... Na5 {[%clk 0:02:13]} 26. Bg4 {[%clk 0:01:54.3]} 26...
Bf5 {[%clk 0:02:11.3]} 27. Bf3 {[%clk 0:01:49.4]} 27... Be4 {[%clk 0:02:11.3]}
28. Bg4 {[%clk 0:01:36.3]} 28... Qg6 {[%clk 0:02:10.2]} 29. Bg3 {[%clk
0:01:30.7]} 29... h5 {[%clk 0:02:07.9]} 30. f3 {[%clk 0:00:48.5]} 30... hxg4
{[%clk 0:02:05.2]} 31. fxe4 {[%clk 0:00:48.4]} 31... gxh3 {[%clk 0:02:05.1]} 32.
Qf4 {[%clk 0:00:46.1]} 32... Qxe4 {[%clk 0:01:49.3]} 33. Qxe4 {[%clk 0:00:45.9]}
33... dxe4 {[%clk 0:01:50.2]} 34. gxh3 {[%clk 0:00:46]} 34... Nc4 {[%clk
0:01:45.9]} 35. d5 {[%clk 0:00:42.5]} 35... Kf8 {[%clk 0:01:41.1]} 36. Kf2
{[%clk 0:00:34.8]} 36... a5 {[%clk 0:01:40.3]} 37. Ke2 {[%clk 0:00:27.7]} 37...
a4 {[%clk 0:01:40.2]} 38. Kd1 {[%clk 0:00:27.9]} 38... a3 {[%clk 0:01:38]} 39.
c6 {[%clk 0:00:24.9]} 39... bxc6 {[%clk 0:01:37.1]} 40. dxc6 {[%clk 0:00:24.9]}
40... Ke8 {[%clk 0:01:34.5]} 0-1